Cogmind - Beta 13 @@@ ROGUE MODE // 2024.04.12 @ 03:14:14 Player: Person Guy Result: Destroyed by S-27 Virus with Autogun Performance ------------- Evolutions (4) 2000 Regions Visited (11) 2200 Robots Destroyed (102) 510 Value Destroyed (4106) 4106 Prototype IDs (15) 300 Alien Tech Used (0) 0 Bonus (2047) 2047 TOTAL SCORE: 11163 Bonus ------- High Alert Combat Kills 167 Follower Combat Kills 227 Entered Garrisons 400 Used RIF Installer 500 Entered DSFs 500 Aligned with FarCom 300 Friendly Fire -47 Cogmind --------- Core Integrity 0/850 Matter 300/300 Energy 68/100 System Corruption 11% Temperature Cool (2) Movement Treading (160) Location -6/Garrison Parts ------- > --- POWER (2) -------- (None) > --- PROPULSION (3) --- Improved Medium Treads > --- UTILITY (7) ------ Large Storage Unit Advanced Targeting Computer Hacking Suite > --- WEAPON (3) ------- (None) > --- INVENTORY (15) --- Large Storage Unit Superbattery (1500) Advanced Phase Shifter Authchip [R/Combat] Authchip [Device] Authchip [Weapon] Tesla Rifle Mass Driver Mass Driver Mass Driver Gamma Bomb Array Gamma Bomb Array Peak State ------------ > --- POWER ------------ Light Angular Momentum Engine Particle Reactor > --- PROPULSION ------- Improved Treads Armored Heavy Treads > --- UTILITY ---------- Advanced Heat Sink Large Storage Unit Superbattery Advanced Phase Shifter Improved Light Armor Plating Hacking Suite System Shield > --- WEAPON ----------- Heavy Laser Magnetic Acceleration Cannon Gamma Bomb Array > --- INVENTORY -------- Fission Core Advanced Heat Sink Large Storage Unit Advanced Targeting Computer Matter Filter Advanced Phase Shifter Improved Light Armor Plating Heavy Laser Compact HERF Cannon Flak Gun Magnetic Acceleration Cannon Gamma Bomb Array [Rating: 87] Favorites ----------- Power Micro Nuclear Core Engine Improved Ion Engine Power Core Micro Nuclear Core Reactor Particle Reactor Propulsion Light Treads Treads Light Treads Leg Carbon-fiber Leg Utility Hacking Suite Device Advanced Heat Sink Storage Large Storage Unit Processor Advanced Targeting Computer Hackware Hacking Suite Protection Layered Light Armor Plating Weapon Spread Laser Energy Gun Spread Laser Energy Cannon Compact HERF Cannon Ballistic Gun Improved Assault Rifle Ballistic Cannon Gauss Cannon Launcher Gamma Bomb Array Build | -11 -10 -10 -10 -9 -8 -7 -6 -6 -6 -6 -6 ------- Run | Yrd Mat Min Exi Min Mat Fac Fac Gar Fac DSF Gar Slots Evolved 8 | . . . . . 4 2 2 . . . . Power 1 | . . . . . . 1 . . . . . Propulsion 1 | . . . . . 1 . . . . . . Utility 5 | . . . . . 2 1 2 . . . . Weapon 1 | . . . . . 1 . . . . . . Parts Attached 149 | 6 14 1 4 1 12 34 21 30 2 12 12 Power 20 | 1 3 1 . . . 7 2 4 . 1 1 Engine 10 | 1 3 1 . . . 4 . 1 . . . Core 9 | . . . . . . 3 2 2 . 1 1 Reactor 1 | . . . . . . . . 1 . . . Propulsion 28 | 2 2 . . . 2 6 4 9 . 1 2 Treads 24 | 2 2 . . . 2 6 4 5 . 1 2 Leg 4 | . . . . . . . . 4 . . . Wheel . | . . . . . . . . . . . . Hover . | . . . . . . . . . . . . Flight . | . . . . . . . . . . . . Utility 52 | 1 5 . 2 1 6 11 5 11 2 4 4 Device 29 | . 4 . . 1 1 6 4 7 2 2 2 Storage 5 | 1 1 . 2 . . . . . . 1 . Processor 3 | . . . . . . 1 . 1 . 1 . Hackware 4 | . . . . . 1 2 1 . . . . Protection 11 | . . . . . 4 2 . 3 . . 2 Artifact . | . . . . . . . . . . . . Weapon 49 | 2 4 . 2 . 4 10 10 6 . 6 5 Energy Gun 15 | 1 1 . 1 . 2 3 3 3 . . 1 Energy Cannon 1 | . . . . . . . . . . . 1 Ballistic Gun 19 | 1 3 . 1 . 2 3 5 2 . 2 . Ballistic Cannon 12 | . . . . . . 4 2 1 . 2 3 Launcher 2 | . . . . . . . . . . 2 . Special Weapon . | . . . . . . . . . . . . Impact Weapon . | . . . . . . . . . . . . Slashing Weapon . | . . . . . . . . . . . . Piercing Weapon . | . . . . . . . . . . . . Special Melee Weapon . | . . . . . . . . . . . . Unidentified Prototypes 6 | . . . 1 1 1 1 1 . 1 . . Parts Lost 29 | . 3 . . . . 1 3 6 . 4 12 Power 7 | . 1 . . . . . . 2 . 1 3 Propulsion 6 | . 1 . . . . . 2 . . 1 2 Utility 13 | . 1 . . . . 1 1 3 . 2 5 Weapon 3 | . . . . . . . . 1 . . 2 Highest Loss Streak 10 | . 2 . . . . 1 2 4 . 4 10 To Critical Strikes 1 | . . . . . . . . . . . 1 Average Slot Usage (%) 95 | . 95 100 78 100 98 99 93 91 93 86 87 Engine 7 | . 13 14 14 14 9 10 2 . 6 6 2 Core 4 | . . . . . . 4 9 9 . 3 7 Treads 21 | . 27 28 28 28 25 23 19 14 13 10 12 Device 11 | . 10 14 14 14 10 6 10 14 20 18 17 Storage 8 | . 14 14 14 14 9 7 6 6 6 6 6 Hackware 10 | . . . . . 7 13 15 13 13 9 6 Protection 5 | . . . . . 9 6 6 5 6 6 7 Energy Gun 9 | . 8 14 7 14 18 10 7 5 6 6 2 Ballistic Gun 6 | . 19 14 . 14 8 4 4 6 6 2 . Ballistic Cannon 5 | . . . . . . 7 6 6 6 7 14 Naked Turns . | . . . . . . . . . . . . Heaviest Build 82 | 13 33 33 33 39 47 64 62 76 73 82 71 Greatest Support 90 | 40 40 40 40 40 60 76 84 88 83 90 90 Greatest Overweight (x) 1 | . . . . . 1 . 1 1 . 1 1 Average Overweight (x) . | . . . . . . . . . . . . Largest Inventory Capacity 15 | 8 15 15 15 15 15 15 15 15 15 15 15 Average Capacity 14 | 7 12 15 14 15 15 15 15 15 15 15 15 Most Carried 15 | 5 13 15 15 14 15 15 15 15 14 15 15 Average Carried 12 | 1 6 13 13 13 12 13 12 12 12 12 14 Final Capacity 15 | 8 15 15 15 15 15 15 15 15 15 15 15 Final Carried 15 | 1 13 14 13 14 14 13 12 13 13 15 12 Class Distribution -------------------- 31% | Hacker-Skirmisher 23% | Scavenger-Skirmisher 19% | Mutant 14% | Skirmisher 8% | Scavenger-Tank Dominant Class ---------------- Mutant | -10/Materials Mutant | -10/Mines Mutant | -10/Exiles Mutant | -9/Mines Skirmisher | -8/Materials Hacker-Skirmisher | -7/Factory Scavenger-Skirmisher | -6/Factory Scavenger-Skirmisher | -6/Garrison Scavenger-Tank | -6/Factory Scavenger-Tank | -6/DSF Scavenger-Tank | -6/Garrison Resources | -11 -10 -10 -10 -9 -8 -7 -6 -6 -6 -6 -6 ----------- Run | Yrd Mat Min Exi Min Mat Fac Fac Gar Fac DSF Gar Matter Collected 3496 | 215 218 67 . 105 250 608 578 760 . 320 375 Remotely . | . . . . . . . . . . . . Salvage Created 3575 | . 326 185 . . 561 709 471 658 . 339 326 Parts 197 | . 20 17 . . 27 42 17 43 . 16 15 Haulers Intercepted 2 | . . . . . 1 1 . . . . . Recyclers Shooed 1 | . . . . . . . 1 . . . . Parts Field Recycled . | . . . . . . . . . . . . Retrieved Matter . | . . . . . . . . . . . . Parts Self-Destructed . | . . . . . . . . . . . . Prevented . | . . . . . . . . . . . . Kills | -11 -10 -10 -10 -9 -8 -7 -6 -6 -6 -6 -6 ------- Run | Yrd Mat Min Exi Min Mat Fac Fac Gar Fac DSF Gar Combat Hostiles Destroyed 89 | . 7 11 . . 14 16 7 15 . 8 11 Guns 49 | . 7 11 . . 12 9 3 4 . 3 . Cannons 31 | . . . . . . 6 3 10 . 1 11 AOE 8 | . . . . . 2 . 1 1 . 4 . Classes Destroyed 15 | . 4 . . . 2 4 2 2 . 1 . Worker 2 | . 1 . . . . . 1 . . . . Hauler 2 | . . . . . 1 1 . . . . . Recycler 3 | . . . . . . 2 1 . . . . Operator 4 | . 2 . . . 1 1 . . . . . Watcher 2 | . . . . . . . 1 1 . . . Swarmer 27 | . 1 9 . . . 4 . 3 . 4 6 Grunt 29 | . 6 2 . . 12 . 3 4 . . 2 Brawler 1 | . . . . . . 1 . . . . . Duelist 1 | . . . . . . 1 . . . . . Sentry 11 | . . . . . 2 3 . 3 . . 3 Specialist 3 | . . . . . . . . 1 . 2 . Hunter 6 | . . . . . . . 2 3 . 1 . Programmer 9 | . . . . . . 7 2 . . . . Heavy 1 | . . . . . . . . . . 1 . Behemoth 1 | . . . . . . . . 1 . . . Best Kill Streak 6 | . 4 3 . . 6 2 3 3 . 4 4 Combat Bots Only 6 | . 4 3 . . 6 2 3 3 . 4 4 Max Kills in Single Turn 3 | . 1 2 . . 2 2 1 1 . 3 2 Gunslinging . | . . . . . . . . . . . . Exploded 2 | . . . . . 2 . 1 1 . 2 . Melee . | . . . . . . . . . . . . Uniques/NPCs Destroyed . | . . . . . . . . . . . . Combat | -11 -10 -10 -10 -9 -8 -7 -6 -6 -6 -6 -6 -------- Run | Yrd Mat Min Exi Min Mat Fac Fac Gar Fac DSF Gar Hostile Shots Fired 937 | . 63 36 . . 50 164 81 226 . 69 248 Missed 313 | . 16 11 . . 23 61 18 57 . 42 85 Damage Taken 9542 | . 625 219 . . 405 1335 1202 2444 . 961 2351 Core 1242 | . 112 25 . . 60 191 103 180 . 273 298 Absorbed by Shields . | . . . . . . . . . . . . Regen/Repaired (Parts) 90 | . 90 . . . . . . . . . . Core Remaining (%) 76 | 100 . . . 45 89 72 . . . . . Volleys Fired 291 | . 35 18 . . 33 56 37 62 . 20 30 Largest 3 | . 2 2 . . 3 3 3 3 . 3 3 Hottest 208 | . 85 85 . . 153 153 177 175 . 202 208 Shots Fired 732 | . 70 36 . 2 93 157 92 160 . 57 65 Gun 495 | . 70 36 . 2 93 96 59 103 . 30 6 Cannon 229 | . . . . . . 61 33 57 . 19 59 Launcher 8 | . . . . . . . . . . 8 . Special . | . . . . . . . . . . . . Kinetic 454 | . 57 18 . . 33 91 58 114 . 31 52 Thermal 223 | . 13 18 . 2 60 66 27 17 . 18 2 Explosive . | . . . . . . . . . . . . Electromagnetic 55 | . . . . . . . 7 29 . 8 11 Robot Hit Streak 15 | . 10 4 . 6 14 13 8 15 . 11 7 Robot Miss Streak 11 | . 4 6 . 1 7 11 4 4 . 5 2 Penetration Max 1 | . . . . . . 1 . 1 . . 1 Secondary Targets 7 | . 1 1 . . 5 . . . . . . Max Gunslinging Chain 1 | . 1 1 . . 1 . . . . . . Shots Hit Robots 486 | . 51 22 . 2 77 109 63 92 . 37 33 Core Hits 289 | . 28 30 . 2 84 43 20 34 . 30 18 Critical Kills . | . . . . . . . . . . . . Critical Parts Destroyed 2 | . . . . . 1 . . 1 . . . Critical Strikes 22 | . . . . . 1 10 5 2 . 1 3 Burn 4 | . . . . . . 1 . . . 1 2 Destroy 2 | . . . . . 1 . . 1 . . . Blast 16 | . . . . . . 9 5 1 . . 1 Melee Attacks . | . . . . . . . . . . . . Impact . | . . . . . . . . . . . . Slashing . | . . . . . . . . . . . . Piercing . | . . . . . . . . . . . . Sneak Attacks . | . . . . . . . . . . . . Combat Hostiles . | . . . . . . . . . . . . Follow-up Attacks . | . . . . . . . . . . . . Damage Inflicted 10850 | . 437 238 . 29 1407 2582 1678 2253 . 994 1232 Guns 5703 | . 437 238 . 29 1126 1417 853 1133 . 368 102 Cannons 4343 | . . . . . . 1160 681 1049 . 323 1130 Explosions 799 | . . . . . 281 . 144 71 . 303 . Melee . | . . . . . . . . . . . . Ramming 5 | . . . . . . 5 . . . . . Kinetic 6540 | . 334 65 . . 376 1479 1133 1642 . 482 1029 Thermal 3174 | . 103 173 . 29 750 1098 473 300 . 209 39 Explosive 281 | . . . . . 281 . . . . . . Electromagnetic 850 | . . . . . . . 72 311 . 303 164 Impact . | . . . . . . . . . . . . Slashing . | . . . . . . . . . . . . Piercing . | . . . . . . . . . . . . Highest Corruption 11 | . 6 6 6 6 3 8 1 1 1 2 11 Average Corruption 3 | . 1 6 6 6 3 4 1 1 1 1 2 Corruption Purged . | . . . . . . . . . . . . Corruption Blocked . | . . . . . . . . . . . . Effects 164 | . 9 12 15 6 14 66 7 13 1 5 16 Message Errors 38 | . 3 4 3 . 4 14 3 3 . 1 3 Matter Fused 44 | . 3 2 5 3 3 18 2 4 1 . 3 Heat Flow Errors 13 | . 2 . . . . 6 1 2 . . 2 Energy Discharges 23 | . . 2 3 1 2 8 1 1 . 2 3 Parts Rejected 2 | . . . . . . 1 . . . . 1 Parts Fused 1 | . . . . . . . . 1 . . . Data Loss (minor) 22 | . 1 2 4 . 1 10 . 1 . 1 2 Data Loss (major) 8 | . . 1 . . 4 3 . . . . . Misfires 5 | . . 1 . 2 . . . . . 1 1 Alerts 5 | . . . . . . 4 . . . . 1 Weapon Failures 3 | . . . . . . 2 . 1 . . . Overload Shots . | . . . . . . . . . . . . Overflow Damage 77 | . . . . . . 22 49 6 . . . Projectiles 77 | . . . . . . 22 49 6 . . . Explosions . | . . . . . . . . . . . . Melee . | . . . . . . . . . . . . Knockbacks 45 | . . . . . . 15 8 11 . 4 7 Impact . | . . . . . . . . . . . . Kinetic 42 | . . . . . . 14 8 11 . 4 5 Secondary 3 | . . . . . . 1 . . . . 2 Self-Inflicted Damage 140 | . . . . . . . 58 . . 82 . Shots 9 | . . . . . . . 1 . . 8 . Rammed 1 | . . . . . . 1 . . . . . Targets Rammed 1 | . . . . . . 1 . . . . . Kicked . | . . . . . . . . . . . . Crushed . | . . . . . . . . . . . . Highest Temperature 641 | . 230 16 . 28 244 253 339 360 . 641 324 Average Temperature 112 | . 50 3 . 16 76 63 138 139 . 155 129 Received Heat Transfer 1908 | . 303 36 . . 234 177 237 453 . . 468 Effects 16 | . . . . . 2 . 3 6 . 5 . Shutdowns 2 | . . . . . . . . . . 2 . Energy Bleed 4 | . . . . . . . . 3 . 1 . Interference 8 | . . . . . 2 . 3 3 . . . Damage (core) 2 | . . . . . . . . . . 2 . Siege Activations . | . . . . . . . . . . . . Robots Corrupted . | . . . . . . . . . . . . Combat Hostiles . | . . . . . . . . . . . . Parts Fried 1 | . . . . . . . . . . 1 . Impact Corruptions . | . . . . . . . . . . . . Robots Melted 1 | . . . . . . 1 . . . . . Combat Hostiles 1 | . . . . . . 1 . . . . . Parts Melted 11 | . 1 . . . 2 8 . . . . . Heat Transferred 5139 | . 252 210 . 35 955 1946 692 346 . 481 222 Parts Sabotaged . | . . . . . . . . . . . . Parts Stolen . | . . . . . . . . . . . . Parts Stripped . | . . . . . . . . . . . . Power Chain Reactions 2 | . . . . . . . 1 1 . . . Alert | -11 -10 -10 -10 -9 -8 -7 -6 -6 -6 -6 -6 ------- Run | Yrd Mat Min Exi Min Mat Fac Fac Gar Fac DSF Gar Peak Influence 729 | . 175 205 . 31 277 191 178 729 410 447 618 Initial 382 | . . 13 . . 11 67 84 30 382 287 335 Average 154 | . 58 116 . 25 113 57 70 363 390 369 439 Maximum Alert Level 3 | . . 1 . . 1 . . 3 2 2 2 Low Security (%) 74 | 100 100 80 . 100 82 100 100 25 . . . Level 1 15 | . . 19 . . 17 . . 45 63 56 43 Level 2 7 | . . . . . . . . 8 36 43 56 Level 3 2 | . . . . . . . . 20 . . . Level 4 . | . . . . . . . . . . . . Level 5 . | . . . . . . . . . . . . High Security . | . . . . . . . . . . . . Max Security . | . . . . . . . . . . . . Sterilizations 1 | . . . . . . . . . . 1 . Squads Dispatched 29 | . 3 . . . 6 11 7 . . 2 . Investigation 7 | . 1 . . . 1 2 3 . . . . Extermination 9 | . . . . . . 7 2 . . . . Reinforcement 10 | . 2 . . . 2 2 2 . . 2 . Assault . | . . . . . . . . . . . . Garrison 3 | . . . . . 3 . . . . . . Intercept . | . . . . . . . . . . . . Searches Triggered . | . . . . . . . . . . . . Construction Impeded . | . . . . . . . . . . . . Haulers Reinforced 1 | . . . . . . 1 . . . . . Active Scanning Responses . | . . . . . . . . . . . . Cargo Convoy Interrupts . | . . . . . . . . . . . . Stealth | -11 -10 -10 -10 -9 -8 -7 -6 -6 -6 -6 -6 --------- Run | Yrd Mat Min Exi Min Mat Fac Fac Gar Fac DSF Gar Distress Signals 7 | . 2 . . . 3 2 . . . . . Communications Jammed . | . . . . . . . . . . . . Distress Signals . | . . . . . . . . . . . . Times Spotted 147 | . 18 12 . . 19 25 12 20 . 9 32 Peak Tracking Total 14 | . 5 3 . . 4 4 3 6 . 4 14 Tactical Retreats 8 | . . 1 . . . 3 . 3 . 1 . Traps | -11 -10 -10 -10 -9 -8 -7 -6 -6 -6 -6 -6 ------- Run | Yrd Mat Min Exi Min Mat Fac Fac Gar Fac DSF Gar Traps Triggered 9 | . 2 . . . . 6 . . . 1 . Indirectly . | . . . . . . . . . . . . Trap Hack Attempts . | . . . . . . . . . . . . Triggered . | . . . . . . . . . . . . Disarmed 4 | . . . . . 4 . . . . . . Reprogrammed 1 | . . . . . 1 . . . . . . Reused 1 | . . . . . 1 . . . . . . Traps Extracted . | . . . . . . . . . . . . Installed . | . . . . . . . . . . . . Triggered 1 | . . . . . 1 . . . . . . Machines | -11 -10 -10 -10 -9 -8 -7 -6 -6 -6 -6 -6 ---------- Run | Yrd Mat Min Exi Min Mat Fac Fac Gar Fac DSF Gar Machines Disabled 11 | . . . . . 2 . 4 2 . 1 2 Max in Single Turn 2 | . . . . . 2 . 2 1 . 1 2 Machines Repaired . | . . . . . . . . . . . . Machines Dismantled . | . . . . . . . . . . . . Machines Sabotaged . | . . . . . . . . . . . . Overloaded Fab Kills . | . . . . . . . . . . . . Hacking | -11 -10 -10 -10 -9 -8 -7 -6 -6 -6 -6 -6 --------- Run | Yrd Mat Min Exi Min Mat Fac Fac Gar Fac DSF Gar Machines Accessed 37 | . 4 . . 1 6 7 11 5 2 . 1 Terminals 30 | . 3 . . . 5 6 8 5 2 . 1 Fabricators . | . . . . . . . . . . . . Repair Stations 1 | . 1 . . . . . . . . . . Recycling Units 3 | . . . . . . 1 2 . . . . Scanalyzers 1 | . . . . . 1 . . . . . . Garrison Access 1 | . . . . . . . 1 . . . . Total Hacks 97 | . 10 . . 1 21 18 32 9 5 . 1 Successful 49 | . 4 . . 1 13 10 14 3 3 . 1 Failed 47 | . 5 . . . 8 8 18 6 2 . . Catastrophic 10 | . 1 . . . 1 3 4 1 . . . Database Lockouts 1 | . 1 . . . . . . . . . . Manual 27 | . 2 . 1 . 6 9 6 2 1 . . Terminals 80 | . 8 . . . 19 15 23 9 5 . 1 Fabricators . | . . . . . . . . . . . . Repair Stations 2 | . 2 . . . . . . . . . . Recycling Units 11 | . . . . . . 3 8 . . . . Scanalyzers 2 | . . . . . 2 . . . . . . Garrison Access 1 | . . . . . . . 1 . . . . Terminal Hacks 38 | . 2 . . 1 11 8 9 3 3 . 1 Record 1 | . . . . . . . 1 . . . . Prototype ID Bank 6 | . 2 . . . 2 1 . . 1 . . Open Door 2 | . . . . 1 . . . 1 . . . Open DSF 2 | . . . . . . . 1 . 1 . . Level Access Points 2 | . . . . . . 1 1 . . . . Emergency Access Points 3 | . . . . . . . . 1 1 . 1 Terminal Index 1 | . . . . . . . 1 . . . . Recycling Unit Index 1 | . . . . . . . 1 . . . . Scanalyzer Index 1 | . . . . . 1 . . . . . . Alert Level 6 | . . . . . 2 3 1 . . . . Locate Traps 3 | . . . . . 2 . 1 . . . . Disarm Traps 2 | . . . . . 2 . . . . . . Reprogram Traps 1 | . . . . . 1 . . . . . . Recall Investigation 1 | . . . . . . . 1 . . . . Registered Components 4 | . . . . . 1 2 1 . . . . Registered Prototypes 1 | . . . . . . 1 . . . . . Garrison Registry 1 | . . . . . . . . 1 . . . Fabricator Hacks . | . . . . . . . . . . . . Repair Station Hacks 2 | . 2 . . . . . . . . . . Scan Component 1 | . 1 . . . . . . . . . . Repair 1 | . 1 . . . . . . . . . . Recycling Unit Hacks 6 | . . . . . . 2 4 . . . . Recycle Component 2 | . . . . . . . 2 . . . . Process 3 | . . . . . . 1 2 . . . . Retrieve Matter 1 | . . . . . . 1 . . . . . Scanalyzer 2 | . . . . . 2 . . . . . . Insert Component 1 | . . . . . 1 . . . . . . Analyze 1 | . . . . . 1 . . . . . . Garrison Access Hacks 1 | . . . . . . . 1 . . . . Unlock Access 1 | . . . . . . . 1 . . . . Unauthorized Hacks . | . . . . . . . . . . . . Terminals . | . . . . . . . . . . . . Fabricators . | . . . . . . . . . . . . Repair Stations . | . . . . . . . . . . . . Recycling Units . | . . . . . . . . . . . . Scanalyzers . | . . . . . . . . . . . . Garrison Access . | . . . . . . . . . . . . Data Cores Recovered 1 | . . . . . . . 1 . . . . Used . | . . . . . . . . . . . . Hacking Detections 28 | . 2 . . . 4 7 10 4 1 . . Full Trace Events 6 | . 1 . . . . 1 3 1 . . . Feedback Events 1 | . 1 . . . . . . . . . . Corruption 1 | . 1 . . . . . . . . . . Feedback Blocked 1 | . . . . . . . 1 . . . . Robot Schematics Acquired . | . . . . . . . . . . . . Robots Built . | . . . . . . . . . . . . Authchips . | . . . . . . . . . . . . Time . | . . . . . . . . . . . . Total Robot Build Rating . | . . . . . . . . . . . . Part Schematics Acquired 1 | . . . . . 1 . . . . . . Parts Built . | . . . . . . . . . . . . Authchips . | . . . . . . . . . . . . Time . | . . . . . . . . . . . . Total Part Build Rating . | . . . . . . . . . . . . Parts Repaired 1 | . 1 . . . . . . . . . . Time 26 | . 26 . . . . . . . . . . Parts Recycled 2 | . . . . . . . 2 . . . . Recycled Matter 168 | . . . . . . 62 106 . . . . Retrieved Matter 62 | . . . . . . 62 . . . . . Retrieved Components . | . . . . . . . . . . . . Parts Scanalyzed 1 | . . . . . 1 . . . . . . Part Schematics Acquired 1 | . . . . . 1 . . . . . . Parts Damaged . | . . . . . . . . . . . . Bothacking | -11 -10 -10 -10 -9 -8 -7 -6 -6 -6 -6 -6 ------------ Run | Yrd Mat Min Exi Min Mat Fac Fac Gar Fac DSF Gar Used RIF Installer 1 | . . . . . . . . 1 . . . Robots Hacked . | . . . . . . . . . . . . Non-combat . | . . . . . . . . . . . . Combat . | . . . . . . . . . . . . Robot Hacks Applied . | . . . . . . . . . . . . Relay Couplers Released . | . . . . . . . . . . . . Fabnet Peak Effective % . | . . . . . . . . . . . . Robots Rewired 3 | . . . . . . . . 3 . . . Allies Hacked . | . . . . . . . . . . . . Hacks Repelled . | . . . . . . . . . . . . Allies | -11 -10 -10 -10 -9 -8 -7 -6 -6 -6 -6 -6 -------- Run | Yrd Mat Min Exi Min Mat Fac Fac Gar Fac DSF Gar Total Allies 3 | . . . . . . . . 3 . . . Largest Group 3 | . . . . . . . . 3 1 1 . Highest-Rated Group 116 | . . . . . . . . 116 51 51 . Highest-Rated Ally 51 | . . . . . . . . 51 51 51 . Total Orders . | . . . . . . . . . . . . Ally Attacks 29 | . . . . 5 . . . 24 . . . Total Damage 708 | . . . . 29 . . . 679 . . . Kills 6 | . . . . 1 . . . 5 . . . Allies Corrupted . | . . . . . . . . . . . . Allies Melted . | . . . . . . . . . . . . Intel | -11 -10 -10 -10 -9 -8 -7 -6 -6 -6 -6 -6 ------- Run | Yrd Mat Min Exi Min Mat Fac Fac Gar Fac DSF Gar Robot Analysis Total . | . . . . . . . . . . . . Derelict Logs Recovered 3 | . . 2 . 1 . . . . . . . Drone Launches 17 | . . . . 6 . . . 11 . . . Drone Recoveries 12 | . . . . 4 1 . . 7 . . . Exploration | -11 -10 -10 -10 -9 -8 -7 -6 -6 -6 -6 -6 ------------- Run | Yrd Mat Min Exi Min Mat Fac Fac Gar Fac DSF Gar Turns Passed 11977 | 61 925 695 399 245 1232 3652 1741 1670 121 384 852 Spaces Moved 6018 | 42 456 388 225 120 608 1945 960 737 71 164 302 Core 16 | 16 . . . . . . . . . . . Treads 5921 | 26 456 388 225 120 608 1945 960 656 71 164 302 Legs 81 | . . . . . . . . 81 . . . Wheels . | . . . . . . . . . . . . Hover . | . . . . . . . . . . . . Flight . | . . . . . . . . . . . . Fastest Speed 50 | 50 160 160 160 160 160 160 160 120 165 165 160 Average Speed 163 | 118 160 160 160 160 172 162 160 165 165 170 166 Slowest Speed 250 | 160 160 160 160 160 240 163 240 190 165 250 250 Overloaded Moves . | . . . . . . . . . . . . Propulsion Burnouts . | . . . . . . . . . . . . Robots Hopped . | . . . . . . . . . . . . Cave-ins Triggered . | . . . . . . . . . . . . Exploration Rate (%) 46 | 3 66 87 62 23 45 45 21 64 2 95 39 Regions Visited 11 Branch Regions 3 Pre-discovered Areas . | . . . . . . . . . . . . Known Exits Taken 4 | . . . . . 1 1 1 . 1 . . Unknown Exits Taken 5 | 1 1 1 1 1 . . . . . . . Scrap Searched 1 | . . 1 . . . . . . . . . Spaces Dug 1 | . . . . . . . . . . . 1 Terrain Destroyed 80 | . . . . . 16 9 34 15 . . 6 Melee . | . . . . . . . . . . . . Projectile 30 | . . . . . . 9 6 9 . . 6 AOE 50 | . . . . . 16 . 28 6 . . . Terrain Rammed . | . . . . . . . . . . . . Walls Destroyed . | . . . . . . . . . . . . Machines Disabled . | . . . . . . . . . . . . Actions | -11 -10 -10 -10 -9 -8 -7 -6 -6 -6 -6 -6 --------- Run | Yrd Mat Min Exi Min Mat Fac Fac Gar Fac DSF Gar Total 7660 | 54 597 433 266 173 731 2331 1097 1075 76 225 602 Wait 864 | . 59 22 24 52 46 217 38 146 . 12 248 Move 6007 | 41 455 387 224 119 607 1944 959 736 70 163 302 Hop . | . . . . . . . . . . . . Pick Up 180 | 7 25 1 12 1 18 43 23 32 2 12 4 Fast Attach . | . . . . . . . . . . . . Attach 122 | 6 13 1 3 . 12 28 16 27 1 7 8 Detach 11 | . 1 2 . . 1 . 1 3 . 1 2 Swap 27 | . 1 . 1 1 . 6 5 3 1 5 4 Drop 116 | . 8 2 2 . 14 36 18 25 2 5 4 Fire 291 | . 35 18 . . 33 56 37 62 . 20 30 Melee . | . . . . . . . . . . . . Ram . | . . . . . . . . . . . . Kick . | . . . . . . . . . . . . Crush 1 | . . . . . . 1 . . . . . Escape Stasis . | . . . . . . . . . . . . Rewire 41 | . . . . . . . . 41 . . . Trap . | . . . . . . . . . . . . Miscellaneous . | . . . . . . . . . . . . Route ------- -11/Scrapyard -10/Materials (discovered 3 exits: [*Mat x2] / [*Min]) -10/Mines (discovered 3 exits: [*Mat x2] / *Exi) -10/Exiles (discovered 2 exits: *Min x2) -9/Mines -8/Materials (discovered 2 exits: *Fac x2) -7/Factory (discovered 5 exits: *Fac x4 / [*Low]) -6/Factory (discovered 5 exits: Fac x4 / Gar) -6/Garrison (discovered 3 exits: *Fac x3) -6/Factory -6/DSF -6/Garrison (discovered 1 exit: *Fac) History --------- Turn | Location | Event 6 | -11/Scrapyard | Discovered new exit (range 15) 62 | -11/Scrapyard | Entered Materials 292 | -10/Materials | Discovered new exit (range 12) 317 | -10/Materials | Build established: Mutant 381 | -10/Materials | Discovered new exit (range 16) 714 | -10/Materials | Repaired Lgt. Treads 750 | -10/Materials | Discovered new exit (range 10) 961 | -10/Materials | Central database locked down 987 | -10/Materials | Entered Mines 1138 | -10/Mines | Found a damaged Exp. Sensor Array with a note attached 1198 | -10/Mines | Learned location of 1 exit from Materials 1204 | -10/Mines | Discovered new exit (range 6) 1333 | -10/Mines | Discovered new exit (range 10) 1434 | -10/Mines | Learned Materials security intel 1538 | -10/Mines | Core integrity fell below 50% 1673 | -10/Mines | Deemed a non-threat by the Exiles lab entrance 1673 | -10/Mines | Discovered new exit (range 5) 1682 | -10/Mines | Entered Exiles 1708 | -10/Exiles | Discovered new exit (range 15) 1726 | -10/Exiles | Met 8R-AWN 1748 | -10/Exiles | Met EX-HEX 1802 | -10/Exiles | Met EX-BIN 1820 | -10/Exiles | Aligned with FarCom system 1822 | -10/Exiles | Given EX-Vault access code 1862 | -10/Exiles | Opened EX-Vault 1871 | -10/Exiles | Found Prototype Storage 1873 | -10/Exiles | Identified Superbattery 1964 | -10/Exiles | Warned to stay clear of 0b10 Research branches 2008 | -10/Exiles | Met EX-DEC 2063 | -10/Exiles | Discovered new exit (range 14) 2081 | -10/Exiles | Left Exiles lab with Superbattery 2081 | -10/Exiles | Entered Mines 2082 | -9/Mines | Assembled infested the area 2087 | -9/Mines | Found the Drone Emporium 2087 | -9/Mines | Assisted by a Guerilla fighting off Assembled 2096 | -9/Mines | Found Prototype Device 2103 | -9/Mines | Identified Splice Drone Bay 2220 | -9/Mines | Discovered new exit (range 9) 2275 | -9/Mines | Learned Materials terminal intel 2326 | -9/Mines | Entered Materials 2326 | -8/Materials | Accompanied by 1 ally 2326 | -8/Materials | Evolved 4 slots: Propulsion x1, Utility x2, Weapon x1 2327 | -8/Materials | Identified exit to Factory 2329 | -8/Materials | Loaded intel: 12 terminal locations 2413 | -8/Materials | Garrison activated, responded to threat 2614 | -8/Materials | Build established: Skirmisher 3059 | -8/Materials | Met 7R-MNS 3229 | -8/Materials | Discovered exit to Factory (range 15) 3558 | -8/Materials | Entered Factory 3558 | -7/Factory | Evolved 2 slots: Power x1, Utility x1 3559 | -7/Factory | Caught up to 7R-MNS 4375 | -7/Factory | Build established: Hacker-Skirmisher 5886 | -7/Factory | Discovered new exit (range 10) 5927 | -7/Factory | Identified exit to Factory 6745 | -7/Factory | Build established: Scavenger-Skirmisher 7210 | -7/Factory | Entered another Factory area 7210 | -6/Factory | Evolved 2 slots: Utility x2 7211 | -6/Factory | Caught up to 7R-MNS 8403 | -6/Factory | Build established: Hacker-Skirmisher 8526 | -6/Factory | Identified exit to Factory 8777 | -6/Factory | Identified exit to Garrison 8951 | -6/Factory | Entered Garrison 9012 | -6/Garrison | Triggered checkpoint 9219 | -6/Garrison | Discovered new exit (range 25) 9219 | -6/Garrison | Discovered new exit (range 63) 9219 | -6/Garrison | Discovered new exit (range 67) 9262 | -6/Garrison | Triggered checkpoint 9293 | -6/Garrison | Spotted B-75 Beast 9374 | -6/Garrison | Destroyed B-75 Beast 9474 | -6/Garrison | Triggered checkpoint 9607 | -6/Garrison | Build established: Scavenger-Skirmisher 9646 | -6/Garrison | Triggered checkpoint 9738 | -6/Garrison | Lost 4 parts (1p2u1w) 9883 | -6/Garrison | Found Gamma Bomb Array 9941 | -6/Garrison | Found Gamma Bomb Array 10196 | -6/Garrison | Lost 3 allies 10342 | -6/Garrison | Triggered checkpoint 10456 | -6/Garrison | Installed Relay Interface Framework 10621 | -6/Garrison | Entered Factory 10621 | -6/Factory | Accompanied by 1 ally 10668 | -6/Factory | Build established: Scavenger-Tank 10741 | -6/Factory | Identified exit to DSF 10742 | -6/Factory | Entered DSF 10742 | -6/DSF | Accompanied by 1 ally 10848 | -6/DSF | Additional patrols routed to DSF 10944 | -6/DSF | Discovered new exit (range 14) 10957 | -6/DSF | Lost 4 parts (1p1n2u) 10976 | -6/DSF | Sterilization system engaged 10996 | -6/DSF | Ambient heat levels rising (+10) 11011 | -6/DSF | Ambient heat levels rising (+10) 11026 | -6/DSF | Ambient heat levels rising (+10) 11041 | -6/DSF | Ambient heat levels rising (+10) 11056 | -6/DSF | Ambient heat levels rising (+10) 11071 | -6/DSF | Ambient heat levels rising (+10) 11086 | -6/DSF | Ambient heat levels rising (+10) 11101 | -6/DSF | Ambient heat levels rising (+10) 11116 | -6/DSF | Ambient heat levels rising (+10) 11122 | -6/DSF | Core integrity fell below 50% 11126 | -6/DSF | Entered Garrison 11450 | -6/Garrison | Triggered checkpoint 11778 | -6/Garrison | Triggered checkpoint 11910 | -6/Garrison | Triggered checkpoint 11910 | -6/Garrison | Triggered checkpoint 11917 | -6/Garrison | Core integrity fell below 20% 11961 | -6/Garrison | System corruption reached 10% 11973 | -6/Garrison | Discovered exit to Factory (range 8) 11978 | -6/Garrison | Destroyed by S-27 Virus with Autogun Last Messages --------------- 11932_ Imp. Medium Treads destroyed. 11934_ Critical hit (Destroy). 11934_ Arm. Heavy Treads destroyed. 11938_ Detecting nearby RIF Installer. 11941_ Fission Core destroyed. 11941_ Lgt. Nuclear Core destroyed. 11945_ System corrupted: Imp. Medium Treads rejected. 11947_ Critical hit (Burn: +37). 11952_ Mass Driver destroyed. 11952_ System corrupted by crushing effect (+4). 11955_ Imp. Light Armor Plating destroyed. 11960_ Adv. Heat Sink destroyed. 11960_ System corrupted by crushing effect (+5). 11961_ S-27 Virus destroyed. 11962_ Com. HERF Cannon destroyed. 11963_ System corrupted: Component data lost. 11968_ S-27 Virus destroyed. 11973_ EXIT=FOUND: FACTORY 11978_ System corrupted: Energy discharge (-29). Map ----- +----------------------------------------------------+ | | | | | | | ?????????????????????????????????????????????????? | | ?????????????????????????????????????????????????? | | ?????????????????????????????????????????????????? | | ?????????????????????????????????????????????????? | | ?????????????????????????????????????????????????? | | ?????????????????????????????????????????????????? | | ?????????????????????????????????????????????????? | | ?????????????????????????????????????????????????? | | ?????????????????????????????????????????????????? | | ?????????????????????????????????????????????????? | | ?????????????????????????????????????????????????? | | ?????????????????????????????????????????????????? | | ?????????????????????????????????????????????????? | | ?????????????????????????????????????????????????? | | ?????????????????????????????????????????????????? | | ?????????????????????####????????????????????????? | | ?????????????????????#""#????????????????????????? | | ?????????????????????# T?????????????????????????? | | ?????????????????????# "??????##?????????????????? | | ?????????????????????# #????? #??+??????????????? | | ??????????++++?????### ##### < +?????????????????? | | ??????????+??+?????# s #?????????????????? | | ??????????+??+?????# s @ #?????????????????? | | ??????????++++?????# b##########?????????????????? | | ???????????????????#gg#??????????????????????????? | | ???????????????????# g#??????????????????????????? | | ???????????????????# #??????????????????????????? | | ???????????????????# g#??????????????????????????? | | ##?????????????????# #??????????????????????????? | | #?????????????????#g #??????????????????????????? | | #?????????????? +g=+??+???????????????????????? | | #?????????????#####= #??????????????????????????? | | #?????????????????#% #??????????????????????????? | | #??????#++###+#####* #??????????????????????????? | | #??????# * #??????????????????????????? | | #??##### = %g#??????????Y???????????????? | | #??# " ###+##### #???????+???+??????????????? | | #??# ### #?# #???# g#??????????????????????????? | | #??# #?# #?# #???# #??????????????????????????? | | #??# #?# #?# #???# ??????????????????????????? | | ####"### #?# #???# ##?????????????????????????? | | ##%=[=## #?# #???# #??????????????????????????? | | ##==[%## ### #???# #??????????????????????????? | | ^ =[% "#+#???# #??????????????????????????? | | ^ % #?""""?????????????????????? | | ^ ???"?????????????????????? | | "# ## ###########?""""?????????????????????? | +----------------------------------------------------+ Best States ------------- Heat Dissipation 75 Energy Generation 36 Energy Capacity 1890 Matter Stores 300 Matter Capacity 300 Sight Range 16 Terrain Scan Density 10 Armor Coverage 450 Phase Shifting 15 Evasion (%) 55 Targeting Accuracy 8 Core Analysis 6 Armor Integrity Analysis 30 Recoil Reduction 3 Matter Filtering 30 Offensive Hacking 20 Defensive Hacking 10 Authchip Count 3 Item Schematics ----------------- Hacking Suite | -8/Materials | Scanalyzed Robot Schematics ------------------ None Fabricated ------------ Nothing Alien Tech Used ----------------- None Achievements -------------- None Challenges ------------ None Game ------ Seed UtilityReactionLeg Manual? 0 Play Time 01:30:34 Cumulative 53.0 hours Start 2024.04.11 @ 09:39:12 End 2024.04.12 @ 03:14:14 Sessions 3 Manual Loads 0 Difficulty Rogue Special Mode None Game No. 49 Rogue 49 Adventurer 0 Explorer 0 Win Type - Total 0 Types 0/0/0/0/0/0/0/0/0 Lore% 36 Gallery% 41 Achievement% 28 Wizard Run 0 Options --------- Layout 1 ASCII 0 Keyboard 0 Movement Numpad Keybinds 0 Fullscreen 1 Font 24/Smallcaps Map View 50x35 Zoom Use 1% Tactical HUD 1 Map Filters NONE Filters NONE Steam 1 RUN: 67ed4187-df79-4f87-8f81-c0b336738dc1